[Event "Early-Titled-Tuesday-Blitz-August-29-2023"]
[Site "Chess.com"]
[Date "2023.08.29"]
[Round "3"]
[White "stratacticos"]
[Black "tylityli"]
[Result "0-1"]
[WhiteElo "1827"]
[BlackElo "2346"]
[TimeControl "180+1"]
[EndTime "8:29:29 PDT"]
[Termination "tylityli won by checkmate"]

1. e4 {[%clk 0:03:00]} 1... e5 {[%clk 0:02:58.6]} 2. Nf3 {[%clk 0:02:59.1]} 2...
Nc6 {[%clk 0:02:57.3]} 3. Bc4 {[%clk 0:02:58.5]} 3... Nf6 {[%clk 0:02:56.4]} 4.
Ng5 {[%clk 0:02:58.5]} 4... d5 {[%clk 0:02:55.4]} 5. exd5 {[%clk 0:02:57.6]}
5... Na5 {[%clk 0:02:55.1]} 6. Bb5+ {[%clk 0:02:57.5]} 6... c6 {[%clk
0:02:55.4]} 7. dxc6 {[%clk 0:02:57.4]} 7... bxc6 {[%clk 0:02:56.3]} 8. Be2
{[%clk 0:02:56.8]} 8... h6 {[%clk 0:02:56]} 9. Nh3 {[%clk 0:02:56]} 9... Bc5
{[%clk 0:02:49.4]} 10. O-O {[%clk 0:02:54.7]} 10... O-O {[%clk 0:02:41.9]} 11.
Kh1 {[%clk 0:02:53.5]} 11... g5 {[%clk 0:02:39.4]} 12. Ng1 {[%clk 0:02:49.7]}
12... Bf5 {[%clk 0:02:28.5]} 13. d3 {[%clk 0:02:47.7]} 13... Nd5 {[%clk
0:02:24.5]} 14. Nc3 {[%clk 0:02:29.1]} 14... Nf4 {[%clk 0:02:21.7]} 15. Bxf4
{[%clk 0:02:28.6]} 15... gxf4 {[%clk 0:02:16]} 16. Bg4 {[%clk 0:02:26.1]} 16...
Qg5 {[%clk 0:02:13.4]} 17. Bxf5 {[%clk 0:02:24.7]} 17... Qxf5 {[%clk 0:02:14.3]}
18. Ne4 {[%clk 0:02:23.3]} 18... Be7 {[%clk 0:02:12.8]} 19. Qf3 {[%clk
0:02:08.7]} 19... c5 {[%clk 0:02:10.2]} 20. Qh3 {[%clk 0:01:53]} 20... Qg6
{[%clk 0:02:05.2]} 21. Nf3 {[%clk 0:01:52.2]} 21... Nc6 {[%clk 0:01:56.7]} 22.
c3 {[%clk 0:01:47]} 22... f5 {[%clk 0:01:55.3]} 23. Ned2 {[%clk 0:01:37.9]}
23... Rad8 {[%clk 0:01:34.4]} 24. Nc4 {[%clk 0:01:09.1]} 24... Bf6 {[%clk
0:01:31.2]} 25. Rad1 {[%clk 0:01:05.2]} 25... Qg4 {[%clk 0:01:21.7]} 26. Qxh6
{[%clk 0:00:58.8]} 26... Rd7 {[%clk 0:01:21.6]} 27. h3 {[%clk 0:00:52.4]} 27...
Qg7 {[%clk 0:01:16.9]} 28. Qxg7+ {[%clk 0:00:52]} 28... Kxg7 {[%clk 0:01:16.3]}
29. Rfe1 {[%clk 0:00:38.8]} 29... Rd5 {[%clk 0:01:13.2]} 30. g3 {[%clk 0:00:36]}
30... fxg3 {[%clk 0:01:10.6]} 31. fxg3 {[%clk 0:00:36]} 31... Rfd8 {[%clk
0:01:10.7]} 32. Ne3 {[%clk 0:00:30.9]} 32... Rxd3 {[%clk 0:01:06.4]} 33. Nxf5+
{[%clk 0:00:29.2]} 33... Kg6 {[%clk 0:01:05.8]} 34. N3h4+ {[%clk 0:00:29.2]}
34... Kg5 {[%clk 0:00:40]} 35. Rxd3 {[%clk 0:00:27.5]} 35... Rxd3 {[%clk
0:00:40.9]} 36. Rf1 {[%clk 0:00:20.5]} 36... e4 {[%clk 0:00:36.2]} 37. g4 {[%clk
0:00:17.3]} 37... Rd2 {[%clk 0:00:28.2]} 38. Ng2 {[%clk 0:00:15.3]} 38... Rxb2
{[%clk 0:00:24.6]} 39. Nfe3 {[%clk 0:00:14.1]} 39... Bxc3 {[%clk 0:00:22.5]} 40.
h4+ {[%clk 0:00:13.4]} 40... Kg6 {[%clk 0:00:22.2]} 41. h5+ {[%clk 0:00:12.8]}
41... Kg7 {[%clk 0:00:19.8]} 42. g5 {[%clk 0:00:12.5]} 42... Ne5 {[%clk
0:00:13.8]} 43. h6+ {[%clk 0:00:08]} 43... Kg6 {[%clk 0:00:12.2]} 44. Rf6+
{[%clk 0:00:07.9]} 44... Kh7 {[%clk 0:00:09.5]} 45. Re6 {[%clk 0:00:06.3]} 45...
Nf3 {[%clk 0:00:09.4]} 46. Nf4 {[%clk 0:00:02.3]} 46... Rh2# {[%clk 0:00:08]}
0-1

[Event "Early-Titled-Tuesday-Blitz-August-29-2023"]
[Site "Chess.com"]
[Date "2023.08.29"]
[Round "3"]
[White "alturas_pacificas"]
[Black "BillCoe"]
[Result "0-1"]
[WhiteElo "2387"]
[BlackElo "2129"]
[TimeControl "180+1"]
[EndTime "8:29:30 PDT"]
[Termination "BillCoe won by checkmate"]

1. d4 {[%clk 0:02:57.3]} 1... d5 {[%clk 0:02:59.7]} 2. Bf4 {[%clk 0:02:54.5]}
2... e6 {[%clk 0:02:59.8]} 3. e3 {[%clk 0:02:55]} 3... Nf6 {[%clk 0:02:59.7]} 4.
Nd2 {[%clk 0:02:55.3]} 4... Bd6 {[%clk 0:03:00.1]} 5. Bg3 {[%clk 0:02:55.2]}
5... O-O {[%clk 0:02:59.7]} 6. Ngf3 {[%clk 0:02:55.3]} 6... c5 {[%clk
0:02:59.5]} 7. c3 {[%clk 0:02:55.4]} 7... b6 {[%clk 0:02:59.4]} 8. Bd3 {[%clk
0:02:55.3]} 8... Ba6 {[%clk 0:02:57.7]} 9. Bxa6 {[%clk 0:02:53.6]} 9... Nxa6
{[%clk 0:02:57.3]} 10. Qe2 {[%clk 0:02:54]} 10... Nb8 {[%clk 0:02:56.2]} 11. e4
{[%clk 0:02:54.2]} 11... dxe4 {[%clk 0:02:55.5]} 12. Nxe4 {[%clk 0:02:54.3]}
12... Nxe4 {[%clk 0:02:55]} 13. Qxe4 {[%clk 0:02:53.4]} 13... Na6 {[%clk
0:02:49]} 14. Rd1 {[%clk 0:02:48.3]} 14... Qc7 {[%clk 0:02:44.6]} 15. O-O {[%clk
0:02:33.2]} 15... Bxg3 {[%clk 0:02:42.7]} 16. hxg3 {[%clk 0:02:34.1]} 16... cxd4
{[%clk 0:02:39.8]} 17. Rxd4 {[%clk 0:02:31.4]} 17... Nc5 {[%clk 0:02:36.9]} 18.
Qe5 {[%clk 0:02:28.5]} 18... Qxe5 {[%clk 0:02:35.8]} 19. Nxe5 {[%clk 0:02:29.1]}
19... Rad8 {[%clk 0:02:35]} 20. Rfd1 {[%clk 0:02:27.1]} 20... Rxd4 {[%clk
0:02:28.1]} 21. Rxd4 {[%clk 0:02:25.9]} 21... g6 {[%clk 0:02:20.9]} 22. Nd7
{[%clk 0:02:16.6]} 22... Rc8 {[%clk 0:02:13]} 23. Nxc5 {[%clk 0:02:15]} 23...
Rxc5 {[%clk 0:02:11.6]} 24. Rd7 {[%clk 0:02:15.5]} 24... Ra5 {[%clk 0:02:02.9]}
25. a3 {[%clk 0:02:15]} 25... Kg7 {[%clk 0:02:00.4]} 26. Kf1 {[%clk 0:02:13.7]}
26... Kf6 {[%clk 0:02:00.2]} 27. Ke2 {[%clk 0:02:14.2]} 27... h5 {[%clk
0:02:00.1]} 28. c4 {[%clk 0:02:03.8]} 28... Ra4 {[%clk 0:01:43.1]} 29. Kd3
{[%clk 0:01:56.4]} 29... Ra5 {[%clk 0:01:42.5]} 30. Kc3 {[%clk 0:01:46.5]} 30...
g5 {[%clk 0:01:42.3]} 31. f3 {[%clk 0:01:36.7]} 31... h4 {[%clk 0:01:35.4]} 32.
gxh4 {[%clk 0:01:36]} 32... gxh4 {[%clk 0:01:36.3]} 33. Rd4 {[%clk 0:01:33.8]}
33... Rg5 {[%clk 0:01:33.4]} 34. Rxh4 {[%clk 0:01:29.1]} 34... Rxg2 {[%clk
0:01:31.9]} 35. Rd4 {[%clk 0:01:27.9]} 35... Rg3 {[%clk 0:01:29.2]} 36. Rd3
{[%clk 0:01:27.9]} 36... Kf5 {[%clk 0:01:27.1]} 37. b4 {[%clk 0:01:28.4]} 37...
f6 {[%clk 0:01:21.9]} 38. a4 {[%clk 0:01:27.2]} 38... Rg1 {[%clk 0:01:19.8]} 39.
a5 {[%clk 0:01:17]} 39... bxa5 {[%clk 0:01:15.7]} 40. bxa5 {[%clk 0:01:17]}
40... Rb1 {[%clk 0:00:54.7]} 41. Rd7 {[%clk 0:01:01.1]} 41... Rf1 {[%clk
0:00:54]} 42. Rxa7 {[%clk 0:01:00.1]} 42... Rxf3+ {[%clk 0:00:54.9]} 43. Kb4
{[%clk 0:01:00.9]} 43... Rf1 {[%clk 0:00:54.8]} 44. a6 {[%clk 0:01:00.5]} 44...
e5 {[%clk 0:00:55.2]} 45. Re7 {[%clk 0:00:59.3]} 45... e4 {[%clk 0:00:55]} 46.
a7 {[%clk 0:00:59.6]} 46... Ra1 {[%clk 0:00:53.5]} 47. c5 {[%clk 0:00:59.4]}
47... Kf4 {[%clk 0:00:53]} 48. c6 {[%clk 0:00:57.1]} 48... f5 {[%clk 0:00:53]}
49. Rb7 {[%clk 0:00:38]} 49... e3 {[%clk 0:00:46.6]} 50. c7 {[%clk 0:00:37.4]}
50... e2 {[%clk 0:00:44.8]} 51. c8=Q {[%clk 0:00:13.1]} 51... e1=Q+ {[%clk
0:00:42.4]} 52. Kb3 {[%clk 0:00:08.5]} 52... Rb1+ {[%clk 0:00:37.2]} 53. Ka4
{[%clk 0:00:06.1]} 53... Qd1+ {[%clk 0:00:30.2]} 54. Ka5 {[%clk 0:00:05]} 54...
Qd2+ {[%clk 0:00:27.6]} 55. Ka6 {[%clk 0:00:02.5]} 55... Qa2# {[%clk 0:00:24.7]}
0-1

[Event "Early-Titled-Tuesday-Blitz-August-29-2023"]
[Site "Chess.com"]
[Date "2023.08.29"]
[Round "3"]
[White "Oleksandr_Bortnyk"]
[Black "temiksmozg"]
[Result "1-0"]
[WhiteElo "3024"]
[BlackElo "2652"]
[TimeControl "180+1"]
[EndTime "8:29:31 PDT"]
[Termination "Oleksandr_Bortnyk won by resignation"]

1. e4 {[%clk 0:02:57.8]} 1... c5 {[%clk 0:02:58.3]} 2. c3 {[%clk 0:02:55.7]}
2... d5 {[%clk 0:02:57.7]} 3. exd5 {[%clk 0:02:56.6]} 3... Qxd5 {[%clk 0:02:58]}
4. d4 {[%clk 0:02:56.8]} 4... Nf6 {[%clk 0:02:58.6]} 5. Be3 {[%clk 0:02:56.4]}
5... e6 {[%clk 0:02:11.8]} 6. Nf3 {[%clk 0:02:51.8]} 6... cxd4 {[%clk
0:02:10.6]} 7. cxd4 {[%clk 0:02:52.7]} 7... Nc6 {[%clk 0:02:10.1]} 8. Nc3 {[%clk
0:02:52.8]} 8... Bb4 {[%clk 0:02:07.9]} 9. Bd3 {[%clk 0:02:52.8]} 9... O-O
{[%clk 0:02:05.5]} 10. O-O {[%clk 0:02:51.4]} 10... Qh5 {[%clk 0:02:04.8]} 11.
Ne4 {[%clk 0:02:45.8]} 11... Nxe4 {[%clk 0:01:55.3]} 12. Bxe4 {[%clk 0:02:46.7]}
12... Bd7 {[%clk 0:01:48]} 13. Ne5 {[%clk 0:02:29.5]} 13... Qxd1 {[%clk
0:01:44.1]} 14. Rfxd1 {[%clk 0:02:30.4]} 14... Rfd8 {[%clk 0:01:34]} 15. Nxd7
{[%clk 0:02:28.7]} 15... Rxd7 {[%clk 0:01:34.9]} 16. Bxc6 {[%clk 0:01:52]} 16...
bxc6 {[%clk 0:01:35.8]} 17. Rac1 {[%clk 0:01:52.3]} 17... Rc8 {[%clk 0:01:35.3]}
18. Rc4 {[%clk 0:01:48.7]} 18... Bf8 {[%clk 0:01:31]} 19. Rdc1 {[%clk
0:01:46.9]} 19... Rdc7 {[%clk 0:01:22.8]} 20. b4 {[%clk 0:01:37.1]} 20... Bd6
{[%clk 0:01:22.1]} 21. g3 {[%clk 0:01:29.6]} 21... Kf8 {[%clk 0:01:19.5]} 22. a4
{[%clk 0:01:22.6]} 22... Ke7 {[%clk 0:01:18.7]} 23. Bd2 {[%clk 0:01:19.8]} 23...
Kd7 {[%clk 0:01:18.2]} 24. Kf1 {[%clk 0:01:14.8]} 24... Rb8 {[%clk 0:01:10.1]}
25. Ke2 {[%clk 0:01:13.9]} 25... Rbc8 {[%clk 0:01:02.5]} 26. h4 {[%clk
0:01:12.5]} 26... h5 {[%clk 0:01:01.8]} 27. Kf3 {[%clk 0:01:10.5]} 27... g6
{[%clk 0:01:01.1]} 28. Bf4 {[%clk 0:01:07.6]} 28... Rb8 {[%clk 0:00:42]} 29. Bd2
{[%clk 0:00:39.7]} 29... Rbc8 {[%clk 0:00:38.5]} 30. Ke4 {[%clk 0:00:40.3]}
30... Rb8 {[%clk 0:00:36.7]} 31. R1c2 {[%clk 0:00:41]} 31... Rbc8 {[%clk
0:00:37]} 32. Bg5 {[%clk 0:00:41.3]} 32... Rb8 {[%clk 0:00:36.6]} 33. Bd2 {[%clk
0:00:40.7]} 33... Rbc8 {[%clk 0:00:36.9]} 34. Bf4 {[%clk 0:00:38.1]} 34... Rb8
{[%clk 0:00:34.7]} 35. b5 {[%clk 0:00:34.3]} 35... Rbc8 {[%clk 0:00:27.5]} 36.
Bxd6 {[%clk 0:00:25.4]} 36... Kxd6 {[%clk 0:00:27.6]} 37. bxc6 {[%clk
0:00:23.1]} 37... Rxc6 {[%clk 0:00:27.9]} 38. Rxc6+ {[%clk 0:00:21.4]} 38...
Rxc6 {[%clk 0:00:28.8]} 39. Rxc6+ {[%clk 0:00:21.8]} 39... Kxc6 {[%clk
0:00:29.7]} 40. Ke5 {[%clk 0:00:22.6]} 40... Kd7 {[%clk 0:00:30]} 41. Kf6 {[%clk
0:00:15]} 41... Ke8 {[%clk 0:00:30.1]} 42. Kg7 {[%clk 0:00:13.1]} 42... Ke7
{[%clk 0:00:30.3]} 43. a5 {[%clk 0:00:12.2]} 43... a6 {[%clk 0:00:23.2]} 44. f3
{[%clk 0:00:12.3]} 44... Ke8 {[%clk 0:00:22.9]} 45. g4 {[%clk 0:00:10.6]} 45...
Ke7 {[%clk 0:00:10.3]} 46. gxh5 {[%clk 0:00:11]} 46... gxh5 {[%clk 0:00:11.2]}
47. Kh6 {[%clk 0:00:07.3]} 47... Kf6 {[%clk 0:00:08.3]} 48. Kxh5 {[%clk
0:00:08]} 48... Kf5 {[%clk 0:00:08.7]} 49. Kh6 {[%clk 0:00:04.7]} 49... Kf4
{[%clk 0:00:03.8]} 50. Kg7 {[%clk 0:00:04]} 50... Kxf3 {[%clk 0:00:04.2]} 51.
Kxf7 {[%clk 0:00:04.1]} 51... Kg4 {[%clk 0:00:02.9]} 52. Kxe6 {[%clk 0:00:04.5]}
52... Kxh4 {[%clk 0:00:03.8]} 53. d5 {[%clk 0:00:05.2]} 1-0

[Event "Early-Titled-Tuesday-Blitz-August-29-2023"]
[Site "Chess.com"]
[Date "2023.08.29"]
[Round "3"]
[White "rochaaaaaaaaaa"]
[Black "LangesNasenhaar"]
[Result "0-1"]
[WhiteElo "2203"]
[BlackElo "2469"]
[TimeControl "180+1"]
[EndTime "8:29:31 PDT"]
[Termination "LangesNasenhaar won by resignation"]

1. e4 {[%clk 0:03:00.9]} 1... g6 {[%clk 0:02:58.9]} 2. d4 {[%clk 0:03:00.4]}
2... Bg7 {[%clk 0:02:59]} 3. Nc3 {[%clk 0:03:00.5]} 3... c6 {[%clk 0:02:58.2]}
4. f4 {[%clk 0:02:59.9]} 4... d5 {[%clk 0:02:57.8]} 5. e5 {[%clk 0:02:59.8]}
5... h5 {[%clk 0:02:58]} 6. h3 {[%clk 0:02:51.7]} 6... Nh6 {[%clk 0:02:54.7]} 7.
Nf3 {[%clk 0:02:51.2]} 7... Nf5 {[%clk 0:02:54.3]} 8. Bd3 {[%clk 0:02:47.9]}
8... Ng3 {[%clk 0:02:51.6]} 9. Rg1 {[%clk 0:02:46.4]} 9... h4 {[%clk 0:02:51.7]}
10. Be3 {[%clk 0:02:44.4]} 10... Bf5 {[%clk 0:02:50.9]} 11. Bf2 {[%clk
0:02:37.8]} 11... Bxd3 {[%clk 0:02:45.9]} 12. Qxd3 {[%clk 0:02:38.7]} 12... Nf5
{[%clk 0:02:45.8]} 13. e6 {[%clk 0:02:16.7]} 13... fxe6 {[%clk 0:02:44.1]} 14.
O-O-O {[%clk 0:02:09.4]} 14... Nd7 {[%clk 0:02:38.6]} 15. Ng5 {[%clk 0:02:03.3]}
15... Nf8 {[%clk 0:02:36.8]} 16. Na4 {[%clk 0:01:53.5]} 16... Qd6 {[%clk
0:02:32.5]} 17. Kb1 {[%clk 0:01:47.4]} 17... b6 {[%clk 0:02:26]} 18. Rde1 {[%clk
0:01:42.6]} 18... Bf6 {[%clk 0:02:14.9]} 19. Qa6 {[%clk 0:01:39.2]} 19... Bxg5
{[%clk 0:02:09.4]} 20. fxg5 {[%clk 0:01:39.1]} 20... Qc7 {[%clk 0:02:06.9]} 21.
c4 {[%clk 0:01:27.9]} 21... Rh5 {[%clk 0:01:55.6]} 22. Re5 {[%clk 0:01:19.5]}
22... Rxg5 {[%clk 0:01:49.1]} 23. Bxh4 {[%clk 0:01:19.4]} 23... Rh5 {[%clk
0:01:21.4]} 24. Bf2 {[%clk 0:01:19]} 24... Nd6 {[%clk 0:01:14.7]} 25. cxd5
{[%clk 0:01:08.8]} 25... exd5 {[%clk 0:01:09.2]} 26. Rge1 {[%clk 0:00:55.1]}
26... Rxe5 {[%clk 0:01:06.6]} 27. dxe5 {[%clk 0:00:55.6]} 27... Ne4 {[%clk
0:01:03.9]} 28. Bxb6 {[%clk 0:00:54.7]} 28... Qxe5 {[%clk 0:00:55.7]} 29. Ba5
{[%clk 0:00:54.7]} 29... Qd6 {[%clk 0:00:49.9]} 30. Qb7 {[%clk 0:00:48.6]} 30...
Rb8 {[%clk 0:00:47.5]} 31. Qxa7 {[%clk 0:00:47.9]} 31... Nd7 {[%clk 0:00:41.9]}
32. Ka1 {[%clk 0:00:47.1]} 32... Kf7 {[%clk 0:00:29]} 33. Bc7 {[%clk 0:00:46.9]}
33... Ra8 {[%clk 0:00:17.2]} 34. Rf1+ {[%clk 0:00:37.8]} 34... Ke6 {[%clk
0:00:15.9]} 35. Qxa8 {[%clk 0:00:33.3]} 35... Qxc7 {[%clk 0:00:16.2]} 36. Qg8+
{[%clk 0:00:33.4]} 36... Kd6 {[%clk 0:00:15]} 37. Qxg6+ {[%clk 0:00:33.7]} 37...
Ndf6 {[%clk 0:00:13.2]} 38. g4 {[%clk 0:00:30.8]} 38... Qa5 {[%clk 0:00:12.3]}
39. b3 {[%clk 0:00:27.5]} 39... Qb5 {[%clk 0:00:09.8]} 40. Rd1 {[%clk 0:00:14]}
40... Qe2 {[%clk 0:00:08.9]} 41. Nb2 {[%clk 0:00:13.7]} 41... Qg2 {[%clk
0:00:04.6]} 42. g5 {[%clk 0:00:13.7]} 42... Qxg5 {[%clk 0:00:04]} 43. Nc4+
{[%clk 0:00:11.8]} 43... Kc5 {[%clk 0:00:03.5]} 44. Qxg5 {[%clk 0:00:10.9]}
44... Nxg5 {[%clk 0:00:04.4]} 45. Ne5 {[%clk 0:00:11]} 45... Nge4 {[%clk
0:00:03.4]} 46. Rc1+ {[%clk 0:00:10]} 46... Kd6 {[%clk 0:00:03.4]} 47. Nxc6
{[%clk 0:00:10.4]} 47... Nh5 {[%clk 0:00:01.8]} 48. Nd4 {[%clk 0:00:10.4]} 48...
e5 {[%clk 0:00:02.2]} 49. Nf5+ {[%clk 0:00:10.7]} 49... Ke6 {[%clk 0:00:02.7]}
50. Ne3 {[%clk 0:00:11.1]} 50... d4 {[%clk 0:00:02.9]} 51. Rc6+ {[%clk
0:00:11.4]} 51... Kd7 {[%clk 0:00:02.4]} 52. Rh6 {[%clk 0:00:11.5]} 52... dxe3
{[%clk 0:00:02.4]} 53. Rxh5 {[%clk 0:00:10.6]} 53... e2 {[%clk 0:00:02.9]} 0-1

[Event "Early-Titled-Tuesday-Blitz-August-29-2023"]
[Site "Chess.com"]
[Date "2023.08.29"]
[Round "3"]
[White "gm_rashid"]
[Black "Gyulamiryan-koryun"]
[Result "1-0"]
[WhiteElo "2373"]
[BlackElo "2055"]
[TimeControl "180+1"]
[EndTime "8:29:31 PDT"]
[Termination "gm_rashid won by checkmate"]

1. e4 {[%clk 0:02:59.2]} 1... c5 {[%clk 0:02:57.8]} 2. Nf3 {[%clk 0:02:59.4]}
2... e6 {[%clk 0:02:55.9]} 3. d4 {[%clk 0:02:59.9]} 3... cxd4 {[%clk 0:02:56.2]}
4. Nxd4 {[%clk 0:03:00.6]} 4... Nf6 {[%clk 0:02:56.7]} 5. Nc3 {[%clk 0:03:01.1]}
5... a6 {[%clk 0:02:51.5]} 6. f3 {[%clk 0:02:59.9]} 6... d6 {[%clk 0:02:50.8]}
7. Be3 {[%clk 0:02:59.7]} 7... Be7 {[%clk 0:02:49.8]} 8. g4 {[%clk 0:02:58.8]}
8... h6 {[%clk 0:02:44]} 9. Rg1 {[%clk 0:02:57.9]} 9... Qc7 {[%clk 0:02:42.3]}
10. Qd2 {[%clk 0:02:57.7]} 10... Nbd7 {[%clk 0:02:39.5]} 11. h4 {[%clk
0:02:52.2]} 11... Ne5 {[%clk 0:02:30.2]} 12. g5 {[%clk 0:02:43.2]} 12... hxg5
{[%clk 0:02:27.4]} 13. hxg5 {[%clk 0:02:40.9]} 13... Nfd7 {[%clk 0:02:21.9]} 14.
O-O-O {[%clk 0:02:18]} 14... b5 {[%clk 0:02:13]} 15. g6 {[%clk 0:02:15.2]} 15...
Nxg6 {[%clk 0:01:36.7]} 16. Nxe6 {[%clk 0:01:56.5]} 16... fxe6 {[%clk
0:01:34.8]} 17. Rxg6 {[%clk 0:01:56.2]} 17... Ne5 {[%clk 0:01:23.8]} 18. Rxg7
{[%clk 0:01:47.2]} 18... Nxf3 {[%clk 0:01:16.6]} 19. Qg2 {[%clk 0:01:44.6]}
19... Ne5 {[%clk 0:01:06.4]} 20. Bg5 {[%clk 0:01:39.6]} 20... Bxg5+ {[%clk
0:00:58.5]} 21. Qxg5 {[%clk 0:01:37.6]} 21... Nf7 {[%clk 0:00:49.5]} 22. Qf6
{[%clk 0:01:32.5]} 22... Rf8 {[%clk 0:00:40.3]} 23. Bxb5+ {[%clk 0:00:44.3]}
23... axb5 {[%clk 0:00:24.3]} 24. Nxb5 {[%clk 0:00:45.2]} 24... Qe7 {[%clk
0:00:24.4]} 25. Nxd6+ {[%clk 0:00:26.6]} 25... Qxd6 {[%clk 0:00:14.3]} 26. Rxd6
{[%clk 0:00:19.4]} 26... Bd7 {[%clk 0:00:14.5]} 27. Rxd7 {[%clk 0:00:16.9]}
27... Kxd7 {[%clk 0:00:13.2]} 28. Rxf7+ {[%clk 0:00:17.3]} 28... Rxf7 {[%clk
0:00:13.4]} 29. Qxf7+ {[%clk 0:00:18.2]} 29... Kd6 {[%clk 0:00:12.9]} 30. Qf4+
{[%clk 0:00:16.5]} 30... Kd7 {[%clk 0:00:12.4]} 31. e5 {[%clk 0:00:15.9]} 31...
Rxa2 {[%clk 0:00:11.3]} 32. Qd4+ {[%clk 0:00:15.3]} 32... Ke7 {[%clk 0:00:09.7]}
33. Qb4+ {[%clk 0:00:14.7]} 33... Kf7 {[%clk 0:00:09.2]} 34. Qb7+ {[%clk
0:00:12.7]} 34... Kg6 {[%clk 0:00:08.5]} 35. Qd7 {[%clk 0:00:08.8]} 35... Ra6
{[%clk 0:00:06.5]} 36. b4 {[%clk 0:00:09.1]} 36... Rb6 {[%clk 0:00:05.3]} 37. b5
{[%clk 0:00:09.3]} 37... Kf5 {[%clk 0:00:04.1]} 38. Qc6 {[%clk 0:00:09.6]} 38...
Rb8 {[%clk 0:00:03.1]} 39. b6 {[%clk 0:00:08.7]} 39... Rh8 {[%clk 0:00:00.8]}
40. Qf3+ {[%clk 0:00:08.2]} 40... Kxe5 {[%clk 0:00:01.7]} 41. Qc3+ {[%clk
0:00:09]} 41... Kd6 {[%clk 0:00:02.1]} 42. Qxh8 {[%clk 0:00:09.9]} 42... Kc6
{[%clk 0:00:02.7]} 43. b7 {[%clk 0:00:10.2]} 43... Kb6 {[%clk 0:00:03.6]} 44.
Qe5 {[%clk 0:00:10.6]} 44... Kxb7 {[%clk 0:00:04.5]} 45. Qxe6 {[%clk 0:00:11.2]}
45... Ka7 {[%clk 0:00:04.8]} 46. Qb3 {[%clk 0:00:11.8]} 46... Ka8 {[%clk
0:00:05.7]} 47. c4 {[%clk 0:00:12.7]} 47... Ka7 {[%clk 0:00:06]} 48. c5 {[%clk
0:00:13.6]} 48... Ka6 {[%clk 0:00:06.9]} 49. c6 {[%clk 0:00:14.5]} 49... Ka5
{[%clk 0:00:07.8]} 50. c7 {[%clk 0:00:14.4]} 50... Ka6 {[%clk 0:00:08.7]} 51.
c8=Q+ {[%clk 0:00:14.7]} 51... Ka5 {[%clk 0:00:09.6]} 52. Qa8# {[%clk
0:00:14.8]} 1-0